bitfinex/quotes_ETHUSD_20240821
["timestamp","ask_amount","ask_price","bid_price","bid_amount"]
[1724263144835,3.80285,2629.6,2629.5,0.04300521]
[1724263145206,3.80285,2629.6,2629.2,1.626]
[1724263145386,3.80285,2629.6,2629.5,0.04300521]
[1724263145589,3.80285,2629.6,2629.2,1.626]
[1724263145791,2.2871,2629.8,2629.3,3.80318]
[1724263146031,6.08972,2629.8,2629.3,3.84642533]
[1724263146422,6.08972,2629.8,2629.3,7.64964533]
[1724263146638,6.08972,2629.8,2629.3,7.64962533]
[1724263147260,6.08972,2629.8,2629.3,7.64964533]
[1724263147461,6.08972,2629.8,2629.3,3.84642533]
[1724263147640,9.8924,2629.8,2629.3,3.84642533]
[1724263147803,3.80292,2629.6,2629.3,0.04324533]
[1724263148438,3.80279,2629.7,2629.3,0.04324533]
[1724263149843,2.2871,2629.8,2629.4,3.80312]
[1724263150011,2.2871,2629.8,2629.4,5.42912]
[1724263150210,2.2871,2629.8,2629.5,0.04301618]
[1724263150456,3.80273,2629.7,2629.2,5.42932]
[1724263150623,3.80273,2629.7,2629.2,9.23268]
[1724263150826,3.80273,2629.7,2629.3,3.8465463]
[1724263151248,3.80273,2629.7,2629.3,0.0432563]
[1724263151458,3.80273,2629.7,2629.3,3.8465363]
[1724263153073,6.08967,2629.8,2629.3,3.8465363]
[1724263153246,2.2754,2629.6,2629.3,3.8465363]
[1724263153860,2.2754,2629.6,2629.3,7.6497463]
[1724263154064,2.2754,2629.6,2629.3,3.8464663]
[1724263154478,2.2754,2629.6,2629.3,9.2756763]
[1724263155003,2.2754,2629.6,2629.3,5.4724363]
[1724263155297,7.44,2630.0,2629.5,1.626]
[1724263155461,9.7154,2630.0,2629.7,5.4287]
[1724263155669,2.2754,2630.0,2629.7,5.4287]
[1724263155851,2.2754,2630.0,2629.8,0.04252793]
[1724263156253,2.2754,2630.0,2629.7,1.626]
[1724263156556,2.2754,2630.0,2629.8,0.04252793]
[1724263156868,2.2754,2630.0,2629.7,1.626]
[1724263157195,2.2754,2630.0,2629.8,0.04252793]
[1724263157349,6.07768,2630.0,2629.6,3.80284]
[1724263157551,2.2754,2630.0,2629.9,0.04240792]
[1724263157750,2.4729,2630.3,2629.9,3.80242]
[1724263158081,2.4729,2630.3,2630.0,1.626]
[1724263158464,2.4729,2630.3,2630.1,0.04198489]
[1724263159871,6.27476,2630.3,2630.1,0.04198489]
[1724263160155,4.429466,2630.2,2629.7,3.80261]
[1724263160355,6.27476,2630.3,2629.5,3.8029]
[1724263160356,3.80221,2630.1,2629.5,3.80289]
[1724263160611,3.80221,2630.1,2629.6,1.626]
[1724263162307,3.80221,2630.1,2629.3,4.16859]
[1724263162308,3.80223,2630.1,2629.3,4.16859]
[1724263162492,3.8025,2629.9,2629.4,8.42905]
[1724263162800,2.262,2630.0,2629.6,1.626]
[1724263163165,6.06428,2630.0,2629.6,1.626]
[1724263163392,2.262,2630.0,2629.6,1.626]
[1724263163591,2.262,2630.0,2629.6,5.42871]
[1724263163759,2.262,2630.0,2629.8,1.626]
[1724263164963,7.60387,2630.3,2629.8,1.626]
[1724263165161,2.3176,2630.2,2630.0,1.626]
[1724263165681,2.3176,2630.2,2629.9,3.80232]
[1724263165894,2.3176,2630.2,2630.1,0.04063643]
[1724263166407,2.3176,2630.2,2629.9,3.80232]
[1724263166827,2.3176,2630.2,2630.0,0.04075642]
[1724263166980,2.3176,2630.2,2629.8,5.42852]
[1724263167182,2.3176,2630.2,2630.1,0.04063643]
[1724263167531,2.3176,2630.2,2629.8,5.42852]
[1724263167821,2.3176,2630.2,2630.1,0.04063643]
[1724263168025,2.3176,2630.2,2630.0,1.626]
[1724263168225,2.3176,2630.2,2630.1,0.04063643]
[1724263169388,2.3176,2630.2,2629.9,3.80241]
[1724263169590,2.3176,2630.2,2630.1,0.04063643]
[1724263169929,2.3176,2630.2,2629.8,1.626]
[1724263170235,2.3176,2630.2,2629.9,3.80235]
[1724263170455,6.18865366,2631.2,2629.9,3.80235]
[1724263170456,2.2775,2630.7,2630.3,3.80177]
[1724263170651,5.39464744,2631.0,2630.6,1.626]
[1724263170652,2.2775,2631.0,2630.6,1.626]
[1724263170811,5.39405744,2631.4,2630.9,1.626]
[1724263170812,6.078,2631.3,2630.9,1.626]
[1724263171359,6.078,2631.3,2630.4,3.3654]
[1724263171360,6.10724643,2631.6,2631.1,1.626]
[1724263171712,6.10724643,2631.6,2631.3,1.626]
[1724263171713,2.30716643,2631.6,2631.3,1.626]
[1724263172163,2.30716643,2631.6,2631.4,0.04173538]
[1724263172369,0.02966643,2631.6,2631.5,1.626]
[1724263172547,0.02966643,2631.6,2631.4,0.04173538]
[1724263172751,0.02966643,2631.6,2631.5,0.04160694]
[1724263173119,0.02966643,2631.6,2631.4,3.80024]
[1724263173363,0.02966643,2631.6,2631.5,0.04130557]
[1724263174361,4.21258507,2631.6,2631.5,0.04130557]
[1724263174679,3.82962643,2631.6,2631.5,0.04130557]
[1724263175025,3.82962643,2631.6,2631.0,3.8007]
[1724263175219,3.82962643,2631.6,2631.5,0.04122341]
[1724263175449,3.82962643,2631.6,2631.1,3.80067]
[1724263175666,3.82962643,2631.6,2631.5,0.04122341]
[1724263175972,4.59256207,2631.6,2631.1,3.80061]
[1724263176123,4.59256207,2631.6,2631.5,0.04122341]
[1724263176418,4.59256207,2631.6,2631.1,3.80061]
[1724263176624,4.59256207,2631.6,2631.5,0.04122733]
[1724263176837,4.59256207,2631.6,2631.1,3.80061]
[1724263177053,4.59256207,2631.6,2631.5,0.04122733]
[1724263177255,4.59256207,2631.6,2631.1,7.60122]
[1724263177454,0.45925621,2631.5,2631.2,0.04161265]
[1724263178424,4.59256207,2631.6,2631.2,0.04161265]
[1724263179371,0.79260207,2631.6,2631.2,3.84214265]
[1724263179926,0.02966643,2631.6,2631.3,3.80037]
[1724263180238,0.02966643,2631.6,2631.4,0.04134793]
[1724263180564,3.79973,2631.8,2631.4,0.04134793]
[1724263180924,3.79973,2631.8,2631.2,3.80054]
[1724263181574,3.7999,2631.7,2631.3,0.04147638]
[1724263181810,4.559863,2631.7,2631.2,3.80054]
[1724263181984,4.559863,2631.7,2631.3,0.04411894]
[1724263182191,4.559863,2631.7,2631.2,3.80054]
[1724263182379,2.4101,2631.6,2631.2,3.80054]
[1724263182613,2.4101,2631.6,2631.3,0.04411894]
[1724263182815,7.2870393,2631.6,2631.2,3.80054]
[1724263183116,7.2870393,2631.6,2631.3,0.04411894]
[1724263183117,2.4101,2631.6,2631.3,0.04411894]
[1724263183488,2.4101,2631.6,2631.2,3.80054]
[1724263183697,2.4101,2631.6,2631.4,0.04398062]
[1724263183881,2.4101,2631.6,2631.3,0.04411894]
[1724263184078,2.4101,2631.6,2631.5,0.04384231]
[1724263184309,3.411091,2631.6,2631.4,0.04398062]
[1724263184518,7.211051,2631.6,2631.5,0.04384231]
[1724263184883,3.80012,2631.5,2631.0,3.80073]
[1724263185530,2.4639,2631.4,2631.0,3.80073]
[1724263185833,2.4639,2631.4,2630.8,3.80104]
[1724263185986,6.08423,2631.2,2630.6,7.60265]
[1724263186188,6.08423,2631.2,2630.6,3.80132]
[1724263186189,9.88486,2631.2,2630.6,3.80132]
[1724263186431,6.08423,2631.2,2630.6,3.80132]
[1724263186778,6.08423,2631.2,2630.6,7.60265]
[1724263186951,7.072688,2631.2,2630.6,3.80132]
[1724263187442,2.2836,2631.2,2630.9,3.80084]
[1724263187733,2.2836,2631.2,2630.8,3.80111]
[1724263188087,2.2836,2631.2,2630.8,3.80104]
[1724263188928,2.27868078,2631.2,2630.8,3.80104]
[1724263189128,2.27868078,2631.2,2630.6,3.80133]
[1724263189361,0.22786808,2631.2,2630.4,3.80158]
[1724263189543,3.80071,2631.1,2630.6,3.80141]
[1724263190040,3.80027,2631.4,2630.6,3.80141]
[1724263190201,3.80027,2631.4,2630.7,3.80113]
[1724263190808,3.80059,2631.2,2630.6,3.80141]
[1724263191006,3.80059,2631.2,2630.6,7.60275]
[1724263191451,3.80099,2630.9,2630.4,3.8016]
[1724263191602,3.80136,2630.7,2630.0,3.80218]
[1724263191807,2.4,2630.4,2630.0,3.80218]
[1724263193259,2.4,2630.4,2629.8,3.80247]
[1724263193606,2.4,2630.4,2629.4,3.897]
[1724263193806,2.4,2630.4,2630.1,3.80202]
[1724263194011,2.4,2630.4,2630.1,7.60408]
[1724263194248,2.4,2630.4,2630.1,3.80202]
[1724263195360,2.4,2630.4,2630.2,3.8019]
[1724263195913,2.4,2630.4,2630.3,0.0412983]
[1724263198458,2.4,2630.4,2630.1,3.80213]
[1724263198632,2.4,2630.4,2630.3,0.0412983]
[1724263198832,2.4,2630.4,2630.1,3.80213]
[1724263199129,2.4,2630.4,2630.3,0.0412983]
[1724263199342,6.17454,2630.3,2630.2,0.04142685]
[1724263199554,2.3727,2630.1,2629.7,3.80269]
[1724263199719,2.3727,2630.1,2629.7,7.60532]
[1724263200214,2.3727,2630.1,2629.8,3.80254]
[1724263200423,2.3727,2630.1,2629.7,3.80264]
[1724263200625,2.3657,2630.4,2629.7,3.80271]
[1724263200829,2.3657,2630.4,2630.2,3.80189]
[1724263201243,2.2717,2630.7,2630.5,3.80147]
[1724263201923,2.2717,2630.7,2630.2,3.8019]
[1724263203066,2.408,2631.0,2630.7,3.80117]
[1724263203265,3.79983,2631.7,2631.1,3.8006]
[1724263203266,2.3368,2631.7,2631.1,3.8006]
[1724263203422,3.80011,2631.5,2631.0,3.80076]
[1724263203623,0.379983,2631.6,2630.9,3.80083]
[1724263203940,3.8005,2631.3,2630.6,3.80133]
[1724263204145,3.80122,2630.8,2630.2,0.3703]
[1724263204474,2.3623,2632.1,2631.2,4.50046]
[1724263204684,2.3623,2632.1,2631.6,3.79995]
[1724263204968,2.60149664,2632.1,2631.6,3.79995]
[1724263205191,2.3231,2632.0,2631.4,3.80024]
[1724263205393,2.3231,2631.3,2630.7,3.80122]
[1724263205530,2.3231,2631.3,2630.8,6.80112]
[1724263205882,2.3231,2631.3,2630.9,3.80093]
[1724263206179,2.3231,2631.3,2631.2,3.80054]
[1724263206777,2.3231,2631.3,2631.1,3.897]
[1724263207069,2.3231,2631.3,2631.2,3.80054]
[1724263207269,2.3231,2631.3,2630.4,3.897]
[1724263207425,2.4822,2631.2,2630.4,3.80157]
[1724263207627,0.23231,2631.3,2630.2,4.80191]
[1724263207628,2.4822,2630.8,2630.2,4.80191]
[1724263207872,2.4822,2630.8,2630.2,1.0]
[1724263208021,2.4822,2630.8,2630.6,3.80133]
[1724263208233,2.4822,2630.8,2630.3,3.80171]
[1724263208431,2.4822,2630.8,2630.5,3.80151]
[1724263209068,2.73042,2630.8,2630.2,1.0]
[1724263209270,2.4238,2630.3,2630.2,1.0]
[1724263209831,2.3059,2630.7,2630.3,3.80181]
[1724263210029,2.3059,2630.7,2630.5,3.80152]
[1724263210560,2.3059,2630.7,2630.2,1.0]
[1724263210767,6.40732,2631.3,2630.6,3.80132]
[1724263210943,6.17501,2631.3,2630.6,3.80131]
[1724263211147,2.3746,2631.3,2630.8,3.80107]
[1724263211679,2.3746,2631.3,2631.0,3.80077]
[1724263211831,2.3746,2631.3,2630.8,3.80102]
[1724263213149,3.80087,2631.0,2630.2,1.0]
[1724263213397,2.4845,2630.7,2630.2,1.0]
[1724263213677,2.4845,2631.0,2630.4,3.80165]
[1724263214050,3.80099,2630.9,2630.2,4.80187]
[1724263214247,2.4766,2630.8,2630.2,4.80187]
[1724263214432,3.80128,2630.7,2630.2,1.0]
[1724263214784,6.27811,2630.6,2630.2,1.0]
[1724263215091,2.4766,2630.6,2630.2,4.80184]
[1724263215378,2.4766,2630.6,2630.2,1.0]
[1724263215530,2.4766,2630.6,2630.2,4.80189]
[1724263215755,2.4766,2630.6,2630.2,1.0]
[1724263216956,3.80184,2630.3,2630.2,1.0]
[1724263217153,13.78692,2630.3,2630.2,1.0]
[1724263217412,11.57636987,2630.3,2630.2,1.0]
[1724263221179,6.24417,2630.6,2630.2,1.04124316]
[1724263221717,2.4427,2630.6,2630.2,1.04124316]
[1724263222021,3.8017,2630.5,2630.2,1.04124316]
[1724263222372,6.24411,2630.6,2630.2,1.04124316]
[1724263222774,2.4427,2630.6,2630.2,4.84318316]
[1724263222972,2.4427,2630.6,2630.2,1.04124316]
[1724263223475,2.2578,2630.8,2630.2,4.84323316]
[1724263223675,1.98791432,2631.1,2630.8,3.80104]
[1724263223676,2.2578,2631.1,2630.8,3.80104]
[1724263223877,2.2578,2631.1,2630.2,1.41154316]
[1724263223878,6.05874,2631.0,2630.9,0.04054284]
[1724263224125,3.80142,2630.6,2630.2,1.0]
[1724263224319,2.2578,2630.5,2630.2,1.0]
[1724263224470,6.05936,2630.5,2630.3,0.04143508]
[1724263224670,6.0551,2630.4,2630.3,0.04143508]
[1724263224877,7.56358,2630.3,2630.2,1.0]
[1724263225121,13.61882,2630.3,2630.2,1.0]
[1724263225284,9.81698,2630.3,2630.2,1.0]
[1724263225492,6.01514,2630.3,2630.2,1.0]
[1724263225676,2.2534,2630.3,2630.2,1.0]
[1724263225991,6.721295,2630.3,2630.2,1.0]
[1724263226325,10.523135,2630.3,2630.2,1.04156363]
[1724263226491,13.523135,2630.3,2630.2,1.04156363]
[1724263226694,13.523135,2630.3,2630.2,1.0]
[1724263226896,18.91626487,2630.3,2630.2,0.59375]
[1724263227114,19.31312286,2630.3,2630.2,0.59375]
[1724263227433,15.11330399,2630.3,2630.2,0.59375]
[1724263227730,15.11333411,2630.3,2630.2,0.59375]
[1724263227941,13.523135,2630.3,2630.2,0.59375]
[1724263228854,18.91538087,2630.3,2630.2,0.59375]
[1724263228999,17.324975,2630.3,2630.2,0.59375]
[1724263229726,18.91476884,2630.3,2630.2,0.59375]
[1724263229930,19.3127848,2630.3,2630.2,0.59375]
[1724263230304,17.324975,2630.3,2630.2,0.59375]
[1724263230704,15.11300202,2630.3,2630.2,0.59375]
[1724263230903,13.523135,2630.3,2630.2,0.59375]
[1724263232842,2.2534,2630.3,2630.2,0.59375]
[1724263233151,2.2534,2630.3,2630.2,0.63552476]
[1724263233360,9.85708,2630.3,2630.2,0.63552476]
[1724263233539,9.85708,2630.3,2630.2,0.59375]
[1724263233712,6.05524,2630.3,2630.2,0.59375]
[1724263233907,6.660764,2630.3,2630.2,0.59375]
[1724263234301,6.660764,2630.3,2630.2,0.63552476]
[1724263234566,2.2534,2630.3,2630.2,0.63552476]
[1724263235171,2.4746,2630.6,2630.2,0.63552476]
[1724263235375,2.4746,2630.6,2630.2,4.43743476]
[1724263235669,2.446,2631.0,2630.2,0.63552476]
[1724263235866,6.24684,2631.0,2630.5,3.80152]
[1724263236072,3.80099,2630.9,2630.6,0.05091814]
[1724263236367,3.80099,2630.9,2630.4,3.8017]
[1724263236566,3.80099,2630.9,2630.2,4.39564]
[1724263236567,3.80099,2630.9,2630.7,0.05073823]
[1724263236775,2.446,2631.0,2630.5,3.80155]
[1724263237065,2.446,2631.0,2630.6,0.05091814]
[1724263237270,6.24695,2631.0,2630.6,0.05091814]
[1724263237578,2.446,2631.0,2630.7,3.80124]
[1724263237717,2.3795,2631.4,2630.7,0.05060751]
[1724263237916,2.3795,2631.4,2630.9,3.8009]
[1724263238123,2.3795,2631.4,2631.0,3.80074]
[1724263238328,2.3795,2631.4,2631.1,3.80068]
[1724263238691,2.4204,2631.8,2631.1,3.80061]
[1724263238978,2.4204,2631.8,2631.3,3.8003]
[1724263239732,6.22009,2631.8,2631.1,7.60117]
[1724263239985,3.79991,2631.7,2630.9,3.80092]
[1724263240164,3.80022,2631.5,2630.9,3.80087]
[1724263240478,7.59985,2631.7,2631.0,3.80077]
[1724263240688,2.3328,2631.4,2630.9,3.80087]
[1724263240985,6.13306,2631.4,2630.9,3.80087]
[1724263241135,6.13306,2631.4,2630.6,3.0]
[1724263241136,2.3328,2631.4,2630.6,3.0]
[1724263241533,3.80088,2631.0,2630.4,3.80168]
[1724263241774,2.3936,2630.9,2630.4,3.80168]
[1724263242029,6.19458,2630.9,2630.4,3.80168]
[1724263242764,2.3936,2630.9,2630.4,3.80168]
[1724263242939,6.0474471,2631.7,2630.8,3.80109]
[1724263242940,2.3869,2631.2,2630.8,3.80109]
[1724263243688,2.3869,2631.2,2630.5,3.80145]
[1724263243991,3.79998,2631.6,2631.0,3.80072]
[1724263243992,2.3421,2631.6,2631.0,3.80072]
[1724263244137,7.26790401,2631.6,2631.0,3.80072]
[1724263244338,7.26790401,2631.6,2631.1,3.80067]
[1724263244339,2.3421,2631.6,2631.1,3.80067]
[1724263244734,2.3421,2631.6,2630.6,8.05135]
[1724263244735,6.14214,2631.6,2631.0,3.80081]
[1724263244938,3.80012,2631.5,2631.0,3.8008]
[1724263245537,2.3421,2631.6,2631.0,3.8008]
[1724263245758,6.14214,2631.6,2631.0,3.8008]
[1724263246349,2.3421,2631.6,2631.2,3.80052]
[1724263246556,6.23791,2631.9,2631.4,3.80023]
[1724263246742,2.4244,2632.6,2631.6,3.79983]
[1724263246943,2.4244,2632.6,2631.3,4.17063]
[1724263246944,2.4244,2632.6,2632.1,3.79912]
[1724263247357,3.046688,2632.6,2631.9,3.79946]
[1724263247695,3.046688,2632.6,2631.7,3.79972]
[1724263247986,3.046688,2632.6,2631.7,4.34972]
[1724263247987,2.4244,2632.6,2631.7,4.34972]
[1724263248205,3.79904,2632.3,2631.8,3.0]
[1724263248990,2.4244,2632.6,2632.0,3.79932]
[1724263249289,3.79876,2632.5,2631.8,10.59917]
[1724263249442,3.79881,2632.4,2631.8,6.79958]
[1724263249792,3.79876,2632.5,2631.8,6.79958]
[1724263250537,3.79876,2632.5,2631.9,3.79945]
[1724263250737,3.79876,2632.5,2632.0,3.79938]
[1724263251063,4.8631486,2632.5,2631.9,3.79952]
[1724263251375,3.046686,2632.6,2632.3,3.79887]
[1724263251376,2.4244,2632.6,2632.3,3.79887]
[1724263251575,2.4244,2632.6,2632.4,3.7987]
[1724263251790,6.78786702,2633.7,2632.3,3.79887]
[1724263251791,2.2644,2632.9,2632.3,3.79887]
[1724263251942,0.606244,2632.8,2632.3,3.79887]
[1724263252349,2.2644,2632.9,2632.5,3.79858]
[1724263252577,2.2644,2632.9,2632.3,7.59772]
[1724263252755,2.2644,2632.9,2632.4,3.7988]
[1724263252954,2.2644,2632.9,2632.3,3.79885]
[1724263253279,2.2644,2632.9,2631.8,3.3703]
[1724263253280,7.59661,2632.8,2632.2,3.79909]
[1724263253591,2.2923,2632.7,2632.2,7.59796]
[1724263253745,6.09038,2633.0,2632.5,3.79859]
[1724263253944,6.09038,2633.0,2631.9,0.3703]
[1724263253945,6.09036,2633.0,2632.3,3.79884]
[1724263254246,2.2923,2632.5,2632.1,3.79911]
[1724263254479,3.7983,2632.8,2632.3,3.79888]
[1724263254480,2.2923,2632.8,2632.3,3.79888]
[1724263254683,2.2923,2632.8,2632.4,3.79879]
[1724263254897,2.2923,2633.1,2632.9,3.79796]
[1724263255103,2.3687,2633.5,2632.9,3.79796]
[1724263255246,3.79769,2633.2,2632.7,3.79836]
[1724263255452,3.79739,2633.4,2632.3,0.7]
[1724263255682,3.79739,2633.4,2632.6,3.79839]
[1724263255885,0.99632,2633.4,2632.8,3.79814]
[1724263256043,0.99632,2633.4,2632.9,3.79806]
[1724263256390,2.3687,2633.5,2633.0,3.79785]
[1724263257111,2.3687,2633.5,2632.9,3.79806]
[1724263257312,3.7974,2633.4,2632.9,3.79806]
[1724263257613,7.07331008,2633.8,2632.9,3.79806]
[1724263258000,2.4989,2633.8,2633.2,3.79761]
[1724263258318,2.4989,2633.8,2633.3,3.7975]
[1724263258464,2.4989,2633.8,2633.2,3.79761]
[1724263258465,2.4989,2633.8,2633.4,3.79726]
[1724263259416,2.3277,2634.1,2633.5,4.34713]
[1724263259568,2.3277,2634.1,2633.6,3.79708]
[1724263259763,2.3277,2634.1,2633.7,3.79679]
[1724263260065,0.1499,2634.3,2633.9,3.79664]
[1724263260325,0.1499,2634.3,2633.7,3.79679]
[1724263260624,3.94598,2634.3,2633.6,3.79696]
[1724263260851,2.3468,2634.2,2633.8,3.79668]
[1724263261336,0.1499,2634.3,2633.9,3.79663]
[1724263261540,0.1499,2634.3,2634.0,3.7965]
[1724263261751,0.1499,2634.3,2634.1,3.79622]
[1724263261930,0.1499,2634.3,2634.2,11.14242]
[1724263262108,0.1269878,2634.7,2634.2,11.14242]
[1724263262109,0.1269878,2634.7,2634.6,3.79564]
[1724263262429,0.1269878,2634.7,2634.6,4.34564]
[1724263262643,0.1269878,2634.7,2634.3,3.79601]
[1724263262846,3.7964,2634.1,2633.3,3.79745]
[1724263263044,2.2965,2634.4,2633.7,3.7969]
[1724263263347,0.1269878,2634.7,2633.9,3.79655]
[1724263263348,3.9225978,2634.7,2633.9,3.79655]
[1724263263539,3.9225978,2634.7,2634.1,3.79633]
[1724263263742,3.9225978,2634.7,2633.9,3.79655]
[1724263263743,3.7963,2634.2,2633.5,3.79714]
[1724263263907,3.79646,2634.1,2633.5,3.79714]
[1724263264110,3.7961,2634.3,2633.5,3.79714]
[1724263264442,2.4073,2634.4,2633.7,3.79683]
[1724263264443,6.20324,2634.4,2633.7,3.79683]
[1724263264589,0.1269878,2634.7,2633.7,0.7]
[1724263265420,3.79675,2633.9,2633.2,3.79756]
[1724263265604,0.37329658,2634.7,2633.0,3.79784]
[1724263265605,3.79702,2633.7,2633.0,3.79784]
[1724263265786,3.79731,2633.5,2632.8,4.49818]
[1724263265987,3.79731,2633.5,2632.6,3.79846]
[1724263265988,3.79757,2633.3,2632.6,3.79846]
[1724263266219,2.3691,2633.2,2632.4,3.79878]
[1724263266430,2.3691,2633.2,2632.6,3.79841]
[1724263266701,2.3691,2633.2,2632.8,3.79821]
[1724263266902,2.3691,2633.2,2633.0,3.79786]
[1724263267102,2.4443,2633.6,2633.0,3.79786]
[1724263267325,3.79735,2633.5,2632.9,3.79806]
[1724263267529,2.4443,2633.6,2633.0,3.79791]
[1724263267913,2.4443,2633.6,2633.1,3.79769]
[1724263268140,2.4443,2633.6,2633.2,3.79764]
[1724263268339,2.4443,2633.6,2633.0,3.79784]
[1724263268750,2.4443,2633.6,2632.7,3.79832]
[1724263268949,6.24126,2633.0,2632.3,3.79889]
[1724263269098,6.24126,2633.0,2632.3,7.59775]
[1724263269298,6.24126,2633.0,2632.4,3.79878]
[1724263269495,2.4432,2633.0,2632.0,4.27696257]
[1724263269833,6.79702,2633.7,2631.6,3.79986]
[1724263269834,2.4036,2632.2,2631.6,3.79986]
[1724263269996,2.4036,2632.2,2631.5,3.80002]
[1724263270197,3.79936,2632.1,2631.1,4.27826257]
[1724263270635,7.59921,2631.9,2631.2,3.80054]
[1724263270950,2.4687,2631.8,2631.1,4.27826257]
[1724263271260,2.4687,2631.8,2631.3,3.80037]
[1724263271743,2.2874,2632.1,2631.1,0.47766257]
[1724263271945,3.79744,2633.4,2632.1,3.79924]
[1724263271946,2.2874,2632.8,2632.1,3.79924]
[1724263272099,6.08572,2632.8,2632.1,3.79924]
[1724263272300,2.2874,2632.8,2632.2,3.79909]
[1724263272504,2.4199,2633.5,2632.8,3.79814]
[1724263272709,2.4199,2633.5,2632.9,5.198]
[1724263272907,2.4199,2633.5,2633.3,3.79741]
[1724263273306,2.4199,2633.5,2633.1,3.79776]
[1724263273512,2.4199,2633.5,2633.0,4.34794]
[1724263273750,2.4199,2633.5,2633.1,3.79779]
[1724263273906,2.4199,2633.5,2633.2,3.79762]
[1724263274540,2.384,2634.0,2633.6,3.79696]
[1724263275221,2.384,2634.0,2633.4,3.79735]
[1724263275754,0.1269878,2634.7,2633.2,3.79761]
[1724263275755,2.3869,2634.5,2633.9,3.79663]
[1724263275965,2.3869,2634.5,2633.7,3.79688]
[1724263276269,2.3869,2634.5,2633.2,4.27529257]
[1724263276270,2.4226,2634.2,2633.2,3.79761]
[1724263276576,6.21898,2634.1,2633.3,3.79741]
[1724263276867,2.4226,2634.1,2633.4,4.34736]
[1724263277084,2.4226,2634.1,2633.5,3.79721]
[1724263277248,2.4226,2634.1,2633.7,3.79693]
[1724263277453,2.4226,2634.1,2633.5,3.79721]
[1724263277821,2.4226,2634.1,2633.6,3.79707]
[1724263278063,2.4226,2634.1,2633.5,3.79714]
[1724263278262,2.4226,2634.1,2633.6,3.79708]
[1724263278666,3.79653,2634.0,2633.3,3.79745]
[1724263278865,2.4226,2634.1,2633.4,3.79737]
[1724263279071,6.21906,2634.1,2633.4,3.79737]
[1724263279379,0.63093878,2634.5,2633.2,3.79761]
[1724263279380,2.46,2634.0,2633.2,3.79761]
[1724263279680,3.79746,2633.4,2632.7,3.79828]
[1724263279879,8.198,2634.4,2632.6,3.79841]
[1724263279880,2.3776,2633.3,2633.2,3.79766]
[1724263280061,3.79603,2634.4,2633.3,3.79742]
[1724263280062,2.3776,2633.9,2633.3,3.79742]
[1724263280367,2.3776,2633.9,2632.9,0.7]
[1724263280368,3.79689,2633.8,2633.1,3.79773]
[1724263280578,3.79689,2633.8,2632.5,9.3669]
[1724263280579,2.3166,2633.6,2632.5,5.198]
[1724263280726,2.3166,2633.6,2633.3,3.79741]
[1724263281127,2.3166,2633.6,2632.9,3.798]
[1724263281466,3.0,2634.4,2632.6,0.47766257]
[1724263281467,2.3166,2633.4,2632.6,7.59689]
[1724263281655,0.611383,2633.3,2632.8,3.79818]
[1724263281866,2.3166,2633.4,2632.8,3.79818]
[1724263282337,2.3166,2633.4,2633.0,3.79793]
[1724263282541,2.3166,2633.4,2633.0,3.79783]
[1724263282757,2.3166,2633.4,2633.3,3.79751]
[1724263282955,2.3166,2633.4,2633.2,3.79756]
[1724263284096,2.3166,2633.4,2633.3,3.79751]
[1724263284288,2.3166,2633.4,2633.2,3.79756]
[1724263284583,6.114,2633.4,2632.8,3.79813]
[1724263284802,2.2853,2633.3,2632.6,6.79846]
[1724263284938,2.2853,2632.9,2632.4,3.79869]
[1724263285339,2.2853,2632.9,2632.2,3.79902]
[1724263285340,3.79819,2632.9,2632.2,3.79902]
[1724263285543,2.2932,2632.4,2631.8,3.79956]
[1724263285761,6.09206,2632.4,2631.8,3.79956]
[1724263285946,2.2932,2632.0,2631.4,3.80017]
[1724263286148,4.408856,2631.9,2631.2,7.6009]
[1724263286401,2.4215,2631.8,2631.0,3.80076]
[1724263286707,2.4215,2631.4,2631.2,3.80045]
[1724263287198,2.4215,2631.4,2631.3,3.8004]
[1724263287343,2.2569,2631.8,2631.5,3.79999]
[1724263287964,7.597,2632.7,2631.6,0.47605076]
[1724263288197,5.1598415,2632.7,2631.8,3.79961]
[1724263288493,2.4594,2631.9,2631.4,3.80015]
[1724263288803,2.4594,2631.9,2631.6,3.79995]
[1724263289011,2.4594,2631.9,2631.6,3.79985]
[1724263289289,2.4594,2631.9,2631.8,3.79968]
[1724263289443,2.4594,2631.9,2631.8,7.59936]
[1724263289651,2.387,2632.3,2631.8,0.55]
[1724263289963,2.387,2632.9,2632.4,3.79873]
[1724263290180,2.387,2632.9,2632.1,3.79918]
[1724263291011,3.79827,2632.8,2632.2,3.79906]
[1724263291145,2.387,2632.9,2632.1,3.79918]
[1724263291350,3.79825,2632.8,2632.1,3.79912]
[1724263291870,3.79825,2632.8,2632.2,3.79909]
[1724263292568,2.4479,2632.7,2631.7,6.7997]
[1724263292768,2.4479,2632.2,2631.5,3.79999]
[1724263292965,2.4479,2632.2,2631.7,3.79981]
[1724263293304,2.4479,2632.2,2631.7,7.59954]
[1724263293512,2.4479,2632.2,2631.5,3.80001]
[1724263293690,2.4479,2632.2,2631.8,3.79959]
[1724263293996,2.4479,2632.2,2631.9,3.79948]
[1724263294210,2.4479,2632.2,2631.8,3.79959]
[1724263294414,2.4479,2632.2,2631.6,7.59975]
[1724263294699,2.4479,2632.2,2631.7,3.79982]
[1724263295279,2.4479,2632.2,2631.5,3.80008]
[1724263295598,2.2839,2632.7,2632.3,3.79885]
[1724263295905,2.2839,2632.7,2632.4,3.79881]
[1724263296050,2.51229,2632.7,2631.9,3.79944]